[Event "Titled Tuesday Blitz December 20 Early 2022"]
[White "Shuvalov, Evgenij"]
[Black "fks_stal_mielec"]
[WhiteFideId "4187237"]
[WhiteElo "2038"]
[BlackElo "2284"]
[Result "1-0"]
[Round "02"]
[TimeControl "180+2"]
[Date "2022.12.20"]
[WhiteClock "0:00:30"]
[BlackClock "0:00:11"]

1. d4 {[%clk 0:02:51]}  Nf6 {[%clk 0:02:59]} 2. c4 {[%clk 0:02:50]}  e6 {[%clk 0:02:59]} 3. Nc3 {[%clk 0:02:49]}  Bb4 {[%clk 0:02:59]} 4. a3 {[%clk 0:02:48]}  Bxc3+ {[%clk 0:02:58]} 5. bxc3 {[%clk 0:02:49]}  O-O {[%clk 0:02:59]} 6. f3 {[%clk 0:02:48]}  d5 {[%clk 0:02:59]} 7. e3 {[%clk 0:02:46]}  c5 {[%clk 0:02:56]} 8. Bd3 {[%clk 0:02:45]}  cxd4 {[%clk 0:02:56]} 9. cxd4 {[%clk 0:02:44]}  Nc6 {[%clk 0:02:56]} 10. Bb2 {[%clk 0:02:40]}  a6 {[%clk 0:02:52]} 11. cxd5 {[%clk 0:02:35]}  exd5 {[%clk 0:02:50]} 12. Ne2 {[%clk 0:02:33]}  Re8 {[%clk 0:02:48]} 13. Bc1 {[%clk 0:02:30]}  Bd7 {[%clk 0:02:21]} 14. O-O {[%clk 0:02:29]}  Na7 {[%clk 0:02:16]} 15. a4 {[%clk 0:02:25]}  b5 {[%clk 0:02:15]} 16. a5 {[%clk 0:02:18]}  Nc6 {[%clk 0:02:12]} 17. Bd2 {[%clk 0:02:17]}  Rc8 {[%clk 0:02:07]} 18. Kh1 {[%clk 0:02:16]}  Qe7 {[%clk 0:02:02]} 19. Qb3 {[%clk 0:02:10]}  Qd6 {[%clk 0:01:47]} 20. Nf4 {[%clk 0:01:59]}  h5 {[%clk 0:01:37]} 21. Rad1 {[%clk 0:01:31]}  h4 {[%clk 0:01:35]} 22. Bb1 {[%clk 0:01:29]}  h3 {[%clk 0:01:29]} 23. g4 {[%clk 0:01:27]}  Be6 {[%clk 0:01:20]} 24. Qd3 {[%clk 0:01:25]}  Nb4 {[%clk 0:01:13]} 25. Bxb4 {[%clk 0:01:21]}  Qxb4 {[%clk 0:01:14]} 26. g5 {[%clk 0:01:20]}  Rc3 {[%clk 0:01:02]} 27. Qd2 {[%clk 0:01:14]}  Nd7 {[%clk 0:01:00]} 28. g6 {[%clk 0:01:07]}  f6 {[%clk 0:00:58]} 29. Qf2 {[%clk 0:00:58]}  Qb3 {[%clk 0:00:47]} 30. Rde1 {[%clk 0:00:56]}  Nf8 {[%clk 0:00:42]} 31. e4 {[%clk 0:00:44]}  dxe4 {[%clk 0:00:38]} 32. Rxe4 {[%clk 0:00:38]}  Bd7 {[%clk 0:00:25]} 33. Ba2 {[%clk 0:00:38]}  Rxe4 {[%clk 0:00:15]} 34. Bxb3+ {[%clk 0:00:36]}  Rxb3 {[%clk 0:00:16]} 35. fxe4 {[%clk 0:00:36]}  Bc6 {[%clk 0:00:17]} 36. d5 {[%clk 0:00:36]}  Bb7 {[%clk 0:00:17]} 37. Qh4 {[%clk 0:00:32]}  Re3 {[%clk 0:00:14]} 38. Ne6 {[%clk 0:00:31]}  Rxe4 {[%clk 0:00:13]} 39. Qxe4 {[%clk 0:00:31]}  Nxe6 {[%clk 0:00:13]} 40. Qxe6+ {[%clk 0:00:31]}  Kf8 {[%clk 0:00:14]} 41. Re1 {[%clk 0:00:30]}  Bxd5+ {[%clk 0:00:11]} 42. Qxd5 {[%clk 0:00:30]}  b4 {[%clk 0:00:11]} 43. Qf7# {[%clk 0:00:30]} 1-0


[Site "https://www.chess.com"]

[Event "Titled Tuesday Blitz December 20 Early 2022"]
[White "Skoularikis, Fotios"]
[Black "Tobias_Koelle"]
[WhiteFideId "4200500"]
[WhiteElo "2223"]
[BlackElo "2779"]
[Result "0-1"]
[Round "02"]
[TimeControl "180+2"]
[Date "2022.12.20"]
[WhiteClock "0:00:45"]
[BlackClock "0:02:09"]

1. e4 {[%clk 0:02:47]}  d6 {[%clk 0:03:00]} 2. d4 {[%clk 0:02:46]}  Nf6 {[%clk 0:03:01]} 3. Nc3 {[%clk 0:02:45]}  Nbd7 {[%clk 0:03:02]} 4. h4 {[%clk 0:02:43]}  e5 {[%clk 0:03:01]} 5. d5 {[%clk 0:02:40]}  c6 {[%clk 0:02:58]} 6. f3 {[%clk 0:02:39]}  cxd5 {[%clk 0:02:56]} 7. exd5 {[%clk 0:02:37]}  a6 {[%clk 0:02:55]} 8. Be3 {[%clk 0:02:35]}  Be7 {[%clk 0:02:52]} 9. Nge2 {[%clk 0:02:30]}  O-O {[%clk 0:02:51]} 10. Ng3 {[%clk 0:02:28]}  Nb6 {[%clk 0:02:47]} 11. Qd2 {[%clk 0:02:23]}  Qc7 {[%clk 0:02:43]} 12. b3 {[%clk 0:02:15]}  Nfxd5 {[%clk 0:02:38]} 13. Nxd5 {[%clk 0:02:03]}  Nxd5 {[%clk 0:02:39]} 14. Qxd5 {[%clk 0:01:45]}  Qc3+ {[%clk 0:02:38]} 15. Kf2 {[%clk 0:01:41]}  Qxa1 {[%clk 0:02:38]} 16. Qd2 {[%clk 0:01:35]}  Qxa2 {[%clk 0:02:35]} 17. Qc3 {[%clk 0:01:22]}  Be6 {[%clk 0:02:32]} 18. Bc4 {[%clk 0:01:20]}  Bxc4 {[%clk 0:02:26]} 19. Ra1 {[%clk 0:01:19]}  Qxa1 {[%clk 0:02:19]} 20. Qxa1 {[%clk 0:01:19]}  Be6 {[%clk 0:02:20]} 21. h5 {[%clk 0:01:16]}  Bh4 {[%clk 0:02:17]} 22. h6 {[%clk 0:01:14]}  f5 {[%clk 0:02:16]} 23. hxg7 {[%clk 0:01:10]}  Rf7 {[%clk 0:02:16]} 24. f4 {[%clk 0:01:04]}  Rxg7 {[%clk 0:02:16]} 25. Kg1 {[%clk 0:00:57]}  Bxg3 {[%clk 0:02:15]} 26. Qd1 {[%clk 0:00:52]}  Bxf4 {[%clk 0:02:08]} 27. Bxf4 {[%clk 0:00:49]}  exf4 {[%clk 0:02:09]} 28. Qxd6 {[%clk 0:00:49]}  Bd7 {[%clk 0:02:09]} 29. Qd5+ {[%clk 0:00:47]}  Kh8 {[%clk 0:02:09]} 30. Qxb7 {[%clk 0:00:48]}  Rag8 {[%clk 0:02:10]} 31. Kf1 {[%clk 0:00:45]}  Bb5+ {[%clk 0:02:09]} 0-1


[Site "https://www.chess.com"]

[Event "Titled Tuesday Blitz December 20 Early 2022"]
[White "Sokolov, Ivan"]
[Black "GHANDEEVAM2003"]
[WhiteFideId "14400030"]
[WhiteElo "2590"]
[BlackElo "3050"]
[Result "0-1"]
[Round "02"]
[TimeControl "180+2"]
[Date "2022.12.20"]
[WhiteClock "0:00:01"]
[BlackClock "0:00:14"]

1. b3 {[%clk 0:02:02]}  e5 {[%clk 0:02:04]} 2. Bb2 {[%clk 0:02:03]}  d6 {[%clk 0:02:05]} 3. e3 {[%clk 0:02:03]}  f5 {[%clk 0:02:03]} 4. d4 {[%clk 0:02:03]}  e4 {[%clk 0:02:02]} 5. d5 {[%clk 0:02:03]}  Nf6 {[%clk 0:02:00]} 6. c4 {[%clk 0:02:04]}  g6 {[%clk 0:01:59]} 7. Ne2 {[%clk 0:02:01]}  Bg7 {[%clk 0:01:59]} 8. Nf4 {[%clk 0:01:56]}  O-O {[%clk 0:01:59]} 9. Qd2 {[%clk 0:01:55]}  Na6 {[%clk 0:01:57]} 10. Nc3 {[%clk 0:01:55]}  g5 {[%clk 0:01:54]} 11. Nfe2 {[%clk 0:01:54]}  Nc5 {[%clk 0:01:53]} 12. Nd4 {[%clk 0:01:54]}  a5 {[%clk 0:01:52]} 13. h4 {[%clk 0:01:53]}  gxh4 {[%clk 0:01:50]} 14. Be2 {[%clk 0:01:41]}  Ng4 {[%clk 0:01:47]} 15. f3 {[%clk 0:01:23]}  Ne5 {[%clk 0:01:22]} 16. O-O-O {[%clk 0:01:23]}  a4 {[%clk 0:01:14]} 17. Kb1 {[%clk 0:01:10]}  axb3 {[%clk 0:01:07]} 18. axb3 {[%clk 0:01:10]}  Ned3 {[%clk 0:01:02]} 19. Bxd3 {[%clk 0:01:08]}  Nxd3 {[%clk 0:00:57]} 20. fxe4 {[%clk 0:01:01]}  fxe4 {[%clk 0:00:58]} 21. Nxe4 {[%clk 0:01:02]}  Nxb2 {[%clk 0:00:57]} 22. Kxb2 {[%clk 0:01:02]}  Qe7 {[%clk 0:00:51]} 23. Nc3 {[%clk 0:00:59]}  Bg4 {[%clk 0:00:47]} 24. Rdf1 {[%clk 0:00:59]}  h5 {[%clk 0:00:45]} 25. Qd3 {[%clk 0:00:23]}  Rae8 {[%clk 0:00:38]} 26. Rxf8+ {[%clk 0:00:22]}  Rxf8 {[%clk 0:00:39]} 27. Qd2 {[%clk 0:00:13]}  Qe5 {[%clk 0:00:37]} 28. Re1 {[%clk 0:00:12]}  Qg3 {[%clk 0:00:37]} 29. Ne4 {[%clk 0:00:11]}  Qh2 {[%clk 0:00:31]} 30. Ng5 {[%clk 0:00:08]}  h3 {[%clk 0:00:27]} 31. Qc2 {[%clk 0:00:01]}  Qxg2 {[%clk 0:00:24]} 32. Re2 {[%clk 0:00:02]}  Bxd4+ {[%clk 0:00:23]} 33. Ka3 {[%clk 0:00:01]}  Bf5 {[%clk 0:00:14]} 0-1


[Site "https://www.chess.com"]

[Event "Titled Tuesday Blitz December 20 Early 2022"]
[White "Sovetov, Oleksandr"]
[Black "tusplingher"]
[WhiteFideId "34105786"]
[WhiteElo "1976"]
[BlackElo "2362"]
[Result "0-1"]
[Round "02"]
[TimeControl "180+2"]
[Date "2022.12.20"]
[WhiteClock "0:00:06"]
[BlackClock "0:00:05"]

1. Nf3 {[%clk 0:02:57]}  Nf6 {[%clk 0:02:59]} 2. c4 {[%clk 0:02:58]}  e6 {[%clk 0:03:00]} 3. e3 {[%clk 0:02:57]}  c5 {[%clk 0:02:58]} 4. d4 {[%clk 0:02:55]}  cxd4 {[%clk 0:02:58]} 5. exd4 {[%clk 0:02:55]}  d5 {[%clk 0:02:59]} 6. Nc3 {[%clk 0:02:54]}  dxc4 {[%clk 0:02:59]} 7. Bxc4 {[%clk 0:02:54]}  Nc6 {[%clk 0:02:59]} 8. O-O {[%clk 0:02:52]}  Be7 {[%clk 0:02:59]} 9. a3 {[%clk 0:02:46]}  O-O {[%clk 0:02:59]} 10. Qd3 {[%clk 0:02:45]}  b6 {[%clk 0:02:45]} 11. Ba2 {[%clk 0:02:17]}  Bb7 {[%clk 0:02:44]} 12. Re1 {[%clk 0:02:15]}  Qd7 {[%clk 0:02:37]} 13. Bg5 {[%clk 0:02:10]}  Rad8 {[%clk 0:02:10]} 14. Bb1 {[%clk 0:01:54]}  Nxd4 {[%clk 0:01:30]} 15. Ne5 {[%clk 0:01:29]}  Qc7 {[%clk 0:01:10]} 16. Bxf6 {[%clk 0:01:00]}  Nf3+ {[%clk 0:01:09]} 17. gxf3 {[%clk 0:00:20]}  Rxd3 {[%clk 0:01:09]} 18. Bxe7 {[%clk 0:00:21]}  Qxe7 {[%clk 0:00:48]} 19. Bxd3 {[%clk 0:00:20]}  Qg5+ {[%clk 0:00:47]} 20. Kf1 {[%clk 0:00:21]}  Qh5 {[%clk 0:00:38]} 21. Be4 {[%clk 0:00:19]}  Bxe4 {[%clk 0:00:35]} 22. Rxe4 {[%clk 0:00:20]}  f6 {[%clk 0:00:27]} 23. Nd7 {[%clk 0:00:18]}  Rd8 {[%clk 0:00:26]} 24. Rd1 {[%clk 0:00:19]}  Qxf3 {[%clk 0:00:25]} 25. Nxf6+ {[%clk 0:00:18]}  Qxf6 {[%clk 0:00:25]} 26. Rxd8+ {[%clk 0:00:19]}  Qxd8 {[%clk 0:00:25]} 27. Rxe6 {[%clk 0:00:19]}  Qd3+ {[%clk 0:00:25]} 28. Re2 {[%clk 0:00:20]}  Qh3+ {[%clk 0:00:21]} 29. Kg1 {[%clk 0:00:20]}  Qg4+ {[%clk 0:00:21]} 30. Kf1 {[%clk 0:00:20]}  h5 {[%clk 0:00:18]} 31. Re3 {[%clk 0:00:20]}  Qc4+ {[%clk 0:00:18]} 32. Kg2 {[%clk 0:00:19]}  Kh7 {[%clk 0:00:18]} 33. h3 {[%clk 0:00:18]}  Qc6+ {[%clk 0:00:18]} 34. Kh2 {[%clk 0:00:18]}  Qd6+ {[%clk 0:00:18]} 35. Kg2 {[%clk 0:00:18]}  Qd2 {[%clk 0:00:18]} 36. Re2 {[%clk 0:00:18]}  Qd4 {[%clk 0:00:18]} 37. Re3 {[%clk 0:00:18]}  a6 {[%clk 0:00:18]} 38. b4 {[%clk 0:00:18]}  a5 {[%clk 0:00:18]} 39. bxa5 {[%clk 0:00:18]}  bxa5 {[%clk 0:00:18]} 40. Ne4 {[%clk 0:00:18]}  Qd5 {[%clk 0:00:17]} 41. Kh2 {[%clk 0:00:18]}  Qe5+ {[%clk 0:00:17]} 42. Ng3 {[%clk 0:00:18]}  Qf4 {[%clk 0:00:18]} 43. Kg2 {[%clk 0:00:18]}  h4 {[%clk 0:00:18]} 44. Ne2 {[%clk 0:00:18]}  Qg5+ {[%clk 0:00:18]} 45. Kf1 {[%clk 0:00:18]}  Qf5 {[%clk 0:00:18]} 46. Ng1 {[%clk 0:00:18]}  Qb1+ {[%clk 0:00:18]} 47. Kg2 {[%clk 0:00:19]}  a4 {[%clk 0:00:18]} 48. Nf3 {[%clk 0:00:19]}  Qg6+ {[%clk 0:00:15]} 49. Kh2 {[%clk 0:00:19]}  Qf6 {[%clk 0:00:15]} 50. Kg2 {[%clk 0:00:20]}  g5 {[%clk 0:00:15]} 51. Re4 {[%clk 0:00:19]}  Qc6 {[%clk 0:00:13]} 52. Rg4 {[%clk 0:00:17]}  Kh6 {[%clk 0:00:12]} 53. Rxg5 {[%clk 0:00:16]}  Qc3 {[%clk 0:00:11]} 54. Rg4 {[%clk 0:00:08]}  Qxa3 {[%clk 0:00:11]} 55. Nxh4 {[%clk 0:00:09]}  Qb3 {[%clk 0:00:07]} 56. Nf5+ {[%clk 0:00:09]}  Kh7 {[%clk 0:00:07]} 57. Nd4 {[%clk 0:00:06]}  Qd5+ {[%clk 0:00:07]} 58. Kh2 {[%clk 0:00:05]}  a3 {[%clk 0:00:08]} 59. Nc2 {[%clk 0:00:05]}  a2 {[%clk 0:00:08]} 60. Ra4 {[%clk 0:00:05]}  Qe5+ {[%clk 0:00:08]} 61. Kg2 {[%clk 0:00:05]}  Qg5+ {[%clk 0:00:07]} 62. Kh2 {[%clk 0:00:05]}  Qe5+ {[%clk 0:00:04]} 63. Kg2 {[%clk 0:00:05]}  Qb2 {[%clk 0:00:04]} 64. Ra7+ {[%clk 0:00:05]}  Kg6 {[%clk 0:00:04]} 65. Nb4 {[%clk 0:00:05]}  Qxb4 {[%clk 0:00:03]} 66. Rxa2 {[%clk 0:00:05]}  Qe4+ {[%clk 0:00:04]} 67. Kg3 {[%clk 0:00:05]}  Qe5+ {[%clk 0:00:04]} 68. Kg2 {[%clk 0:00:05]}  Qd5+ {[%clk 0:00:04]} 69. Kg3 {[%clk 0:00:06]}  Qxa2 {[%clk 0:00:05]} 0-1


[Site "https://www.chess.com"]

[Event "Titled Tuesday Blitz December 20 Early 2022"]
[White "Sunny_Star"]
[Black "Midgardsormur"]
[WhiteElo "2241"]
[BlackElo "2460"]
[Result "0-1"]
[Round "02"]
[TimeControl "180+2"]
[Date "2022.12.20"]
[WhiteClock "0:00:00"]
[BlackClock "0:00:04"]

1. d4 {[%clk 0:02:51]}  Nf6 {[%clk 0:02:59]} 2. c4 {[%clk 0:02:51]}  e6 {[%clk 0:02:59]} 3. Nc3 {[%clk 0:02:50]}  Bb4 {[%clk 0:02:59]} 4. Nf3 {[%clk 0:02:49]}  O-O {[%clk 0:02:58]} 5. e3 {[%clk 0:02:48]}  b6 {[%clk 0:02:57]} 6. Bd3 {[%clk 0:02:44]}  Bb7 {[%clk 0:02:57]} 7. Qc2 {[%clk 0:02:43]}  d6 {[%clk 0:02:56]} 8. e4 {[%clk 0:02:39]}  e5 {[%clk 0:02:50]} 9. d5 {[%clk 0:02:35]}  Nbd7 {[%clk 0:02:47]} 10. O-O {[%clk 0:02:34]}  Bxc3 {[%clk 0:02:46]} 11. Qxc3 {[%clk 0:02:13]}  Nc5 {[%clk 0:02:46]} 12. Qc2 {[%clk 0:02:13]}  a5 {[%clk 0:02:43]} 13. Bg5 {[%clk 0:02:09]}  h6 {[%clk 0:02:43]} 14. Bh4 {[%clk 0:02:09]}  g5 {[%clk 0:02:41]} 15. Bg3 {[%clk 0:02:08]}  Nh5 {[%clk 0:02:38]} 16. Ne1 {[%clk 0:02:02]}  Nf4 {[%clk 0:02:29]} 17. f3 {[%clk 0:01:52]}  Qf6 {[%clk 0:02:07]} 18. Bf2 {[%clk 0:01:42]}  Kg7 {[%clk 0:01:58]} 19. Be3 {[%clk 0:00:42]}  Rg8 {[%clk 0:01:47]} 20. g3 {[%clk 0:00:36]}  Kh8 {[%clk 0:01:34]} 21. Kh1 {[%clk 0:00:34]}  Nfxd3 {[%clk 0:00:56]} 22. Nxd3 {[%clk 0:00:33]}  Qg6 {[%clk 0:00:56]} 23. Nxc5 {[%clk 0:00:28]}  bxc5 {[%clk 0:00:57]} 24. f4 {[%clk 0:00:25]}  gxf4 {[%clk 0:00:50]} 25. gxf4 {[%clk 0:00:25]}  exf4 {[%clk 0:00:47]} 26. Rxf4 {[%clk 0:00:24]}  Rae8 {[%clk 0:00:31]} 27. Rg1 {[%clk 0:00:22]}  Qh5 {[%clk 0:00:27]} 28. Qc3+ {[%clk 0:00:20]}  Kh7 {[%clk 0:00:23]} 29. Qf6 {[%clk 0:00:15]}  Rxg1+ {[%clk 0:00:20]} 30. Bxg1 {[%clk 0:00:14]}  Rf8 {[%clk 0:00:11]} 31. Rf5 {[%clk 0:00:12]}  Qg6 {[%clk 0:00:10]} 32. Qe7 {[%clk 0:00:10]}  Rg8 {[%clk 0:00:06]} 33. Qxf7+ {[%clk 0:00:09]}  Qxf7 {[%clk 0:00:06]} 34. Rxf7+ {[%clk 0:00:09]}  Rg7 {[%clk 0:00:07]} 35. Rxg7+ {[%clk 0:00:08]}  Kxg7 {[%clk 0:00:08]} 36. Be3 {[%clk 0:00:08]}  Bc8 {[%clk 0:00:06]} 37. Kg2 {[%clk 0:00:08]}  Bg4 {[%clk 0:00:06]} 38. b3 {[%clk 0:00:05]}  Bd1 {[%clk 0:00:04]} 39. Bf4 {[%clk 0:00:06]}  Kf6 {[%clk 0:00:03]} 40. Kf2 {[%clk 0:00:04]}  h5 {[%clk 0:00:03]} 41. Ke3 {[%clk 0:00:04]}  a4 {[%clk 0:00:03]} 42. bxa4 {[%clk 0:00:02]}  Bxa4 {[%clk 0:00:02]} 43. Bg3 {[%clk 0:00:02]}  Kg5 {[%clk 0:00:01]} 44. h3 {[%clk 0:00:02]}  h4 {[%clk 0:00:02]} 45. Bf4+ {[%clk 0:00:02]}  Kg6 {[%clk 0:00:01]} 46. e5 {[%clk 0:00:01]}  Kh5 {[%clk 0:00:02]} 47. exd6 {[%clk 0:00:01]}  cxd6 {[%clk 0:00:03]} 48. Bxd6 {[%clk 0:00:01]}  Bd7 {[%clk 0:00:04]} 49. Bxc5 {[%clk 0:00:01]}  Bxh3 {[%clk 0:00:05]} 50. Bd6 {[%clk 0:00:00]}  Bg2 {[%clk 0:00:04]} 0-1


[Site "https://www.chess.com"]

[Event "Titled Tuesday Blitz December 20 Early 2022"]
[White "Talcrifice"]
[Black "Abasov, Nijat"]
[BlackFideId "13402960"]
[WhiteElo "2621"]
[BlackElo "2634"]
[Result "0-1"]
[Round "02"]
[TimeControl "180+2"]
[Date "2022.12.20"]
[WhiteClock "0:01:34"]
[BlackClock "0:01:46"]

1. d4 {[%clk 0:03:00]}  Nf6 {[%clk 0:02:59]} 2. c4 {[%clk 0:03:01]}  e6 {[%clk 0:02:59]} 3. g3 {[%clk 0:03:00]}  b6 {[%clk 0:03:00]} 4. Bg2 {[%clk 0:03:00]}  c6 {[%clk 0:03:01]} 5. Nc3 {[%clk 0:02:59]}  d5 {[%clk 0:03:00]} 6. cxd5 {[%clk 0:02:54]}  cxd5 {[%clk 0:03:00]} 7. e4 {[%clk 0:02:53]}  dxe4 {[%clk 0:02:53]} 8. Nxe4 {[%clk 0:02:50]}  Nd5 {[%clk 0:02:53]} 9. Ne2 {[%clk 0:02:47]}  Be7 {[%clk 0:02:53]} 10. O-O {[%clk 0:02:47]}  O-O {[%clk 0:02:54]} 11. h4 {[%clk 0:02:40]}  Bb7 {[%clk 0:02:48]} 12. N2c3 {[%clk 0:02:24]}  Nd7 {[%clk 0:02:45]} 13. Re1 {[%clk 0:02:20]}  N7f6 {[%clk 0:02:41]} 14. Ng5 {[%clk 0:02:19]}  Nxc3 {[%clk 0:02:39]} 15. bxc3 {[%clk 0:02:18]}  Bxg2 {[%clk 0:02:40]} 16. Kxg2 {[%clk 0:02:18]}  Rc8 {[%clk 0:02:39]} 17. Bd2 {[%clk 0:02:15]}  Qd5+ {[%clk 0:02:33]} 18. Qf3 {[%clk 0:02:11]}  Qxf3+ {[%clk 0:02:27]} 19. Kxf3 {[%clk 0:02:12]}  h6 {[%clk 0:02:27]} 20. Ne4 {[%clk 0:02:11]}  Rc4 {[%clk 0:02:25]} 21. Nxf6+ {[%clk 0:02:10]}  Bxf6 {[%clk 0:02:26]} 22. Ke4 {[%clk 0:02:10]}  Rfc8 {[%clk 0:02:21]} 23. Kd3 {[%clk 0:02:10]}  Ra4 {[%clk 0:02:21]} 24. Reb1 {[%clk 0:02:04]}  Rd8 {[%clk 0:02:18]} 25. f4 {[%clk 0:02:00]}  Bxd4 {[%clk 0:02:17]} 26. Kc2 {[%clk 0:01:51]}  Bf2 {[%clk 0:02:15]} 27. g4 {[%clk 0:01:47]}  Bxh4 {[%clk 0:02:14]} 28. Rf1 {[%clk 0:01:46]}  Be7 {[%clk 0:02:08]} 29. g5 {[%clk 0:01:43]}  h5 {[%clk 0:02:07]} 30. g6 {[%clk 0:01:42]}  fxg6 {[%clk 0:02:04]} 31. Rg1 {[%clk 0:01:42]}  Kf7 {[%clk 0:02:04]} 32. Rg2 {[%clk 0:01:42]}  Bf6 {[%clk 0:01:58]} 33. Kb3 {[%clk 0:01:40]}  Ra5 {[%clk 0:01:51]} 34. a4 {[%clk 0:01:40]}  h4 {[%clk 0:01:51]} 35. Rag1 {[%clk 0:01:38]}  h3 {[%clk 0:01:49]} 36. Rh2 {[%clk 0:01:38]}  Rd3 {[%clk 0:01:46]} 37. Kc2 {[%clk 0:01:34]}  Rf3 {[%clk 0:01:46]} 0-1


[Site "https://www.chess.com"]

[Event "Titled Tuesday Blitz December 20 Early 2022"]
[White "Tomescu, Vlad"]
[Black "Korchmar_Vasiliy"]
[WhiteFideId "1201026"]
[WhiteElo "2323"]
[BlackElo "2703"]
[Result "0-1"]
[Round "02"]
[TimeControl "180+2"]
[Date "2022.12.20"]
[WhiteClock "0:00:03"]
[BlackClock "0:00:05"]

1. Nf3 {[%clk 0:03:00]}  d5 {[%clk 0:02:59]} 2. c4 {[%clk 0:03:00]}  c6 {[%clk 0:02:59]} 3. b3 {[%clk 0:03:00]}  Bg4 {[%clk 0:02:55]} 4. e3 {[%clk 0:02:54]}  e6 {[%clk 0:02:54]} 5. Bb2 {[%clk 0:02:54]}  Nf6 {[%clk 0:02:54]} 6. Be2 {[%clk 0:02:53]}  Nbd7 {[%clk 0:02:54]} 7. O-O {[%clk 0:02:53]}  Bd6 {[%clk 0:02:55]} 8. h3 {[%clk 0:02:53]}  Bh5 {[%clk 0:02:54]} 9. d4 {[%clk 0:02:51]}  Qb8 {[%clk 0:02:52]} 10. Nc3 {[%clk 0:02:48]}  O-O {[%clk 0:02:51]} 11. Rc1 {[%clk 0:02:44]}  Re8 {[%clk 0:02:49]} 12. Re1 {[%clk 0:02:43]}  a6 {[%clk 0:02:47]} 13. Qc2 {[%clk 0:02:36]}  b5 {[%clk 0:02:39]} 14. c5 {[%clk 0:02:09]}  Bc7 {[%clk 0:02:37]} 15. b4 {[%clk 0:02:04]}  a5 {[%clk 0:02:31]} 16. a3 {[%clk 0:02:04]}  Bxf3 {[%clk 0:02:12]} 17. Bxf3 {[%clk 0:02:02]}  e5 {[%clk 0:02:13]} 18. Qf5 {[%clk 0:01:35]}  exd4 {[%clk 0:01:51]} 19. exd4 {[%clk 0:01:32]}  Nf8 {[%clk 0:01:52]} 20. Re2 {[%clk 0:01:01]}  Ne6 {[%clk 0:01:45]} 21. Rd1 {[%clk 0:00:51]}  axb4 {[%clk 0:01:43]} 22. axb4 {[%clk 0:00:50]}  Nf4 {[%clk 0:01:18]} 23. Rxe8+ {[%clk 0:00:46]}  Qxe8 {[%clk 0:01:19]} 24. Bc1 {[%clk 0:00:43]}  Ne6 {[%clk 0:01:16]} 25. Be3 {[%clk 0:00:38]}  Ra3 {[%clk 0:01:15]} 26. Qc2 {[%clk 0:00:37]}  Qa8 {[%clk 0:01:13]} 27. Qb2 {[%clk 0:00:35]}  h6 {[%clk 0:01:04]} 28. Bc1 {[%clk 0:00:35]}  Ra6 {[%clk 0:01:03]} 29. Be3 {[%clk 0:00:34]}  Ra3 {[%clk 0:01:01]} 30. Bc1 {[%clk 0:00:34]}  Ra1 {[%clk 0:01:02]} 31. Be3 {[%clk 0:00:33]}  Ra7 {[%clk 0:00:57]} 32. Re1 {[%clk 0:00:25]}  Nh7 {[%clk 0:00:45]} 33. Bg4 {[%clk 0:00:23]}  Nhf8 {[%clk 0:00:44]} 34. Rd1 {[%clk 0:00:21]}  Ra3 {[%clk 0:00:43]} 35. Bc1 {[%clk 0:00:18]}  Ra1 {[%clk 0:00:44]} 36. Be3 {[%clk 0:00:18]}  Ra7 {[%clk 0:00:43]} 37. Re1 {[%clk 0:00:18]}  Nf4 {[%clk 0:00:26]} 38. Rd1 {[%clk 0:00:16]}  Ra3 {[%clk 0:00:26]} 39. g3 {[%clk 0:00:11]}  N4e6 {[%clk 0:00:20]} 40. Kg2 {[%clk 0:00:10]}  Kh7 {[%clk 0:00:15]} 41. Bf5+ {[%clk 0:00:09]}  g6 {[%clk 0:00:15]} 42. Bg4 {[%clk 0:00:09]}  h5 {[%clk 0:00:15]} 43. Bf3 {[%clk 0:00:07]}  Kg7 {[%clk 0:00:16]} 44. Qc2 {[%clk 0:00:05]}  Nd7 {[%clk 0:00:13]} 45. h4 {[%clk 0:00:05]}  Nf6 {[%clk 0:00:14]} 46. Re1 {[%clk 0:00:02]}  Ra6 {[%clk 0:00:14]} 47. Rd1 {[%clk 0:00:02]}  Ra3 {[%clk 0:00:14]} 48. Re1 {[%clk 0:00:02]}  Ra1 {[%clk 0:00:13]} 49. Rxa1 {[%clk 0:00:02]}  Qxa1 {[%clk 0:00:14]} 50. Ne2 {[%clk 0:00:02]}  Qa3 {[%clk 0:00:14]} 51. Qd2 {[%clk 0:00:02]}  Qb3 {[%clk 0:00:10]} 52. Nf4 {[%clk 0:00:02]}  Bxf4 {[%clk 0:00:07]} 53. Bxf4 {[%clk 0:00:03]}  Nxf4+ {[%clk 0:00:08]} 54. gxf4 {[%clk 0:00:04]}  Qb1 {[%clk 0:00:05]} 55. Kg3 {[%clk 0:00:04]}  Qf5 {[%clk 0:00:05]} 56. Qe3 {[%clk 0:00:04]}  Qb1 {[%clk 0:00:06]} 57. Qe5 {[%clk 0:00:04]}  Qxb4 {[%clk 0:00:04]} 58. f5 {[%clk 0:00:04]}  Qb1 {[%clk 0:00:04]} 59. fxg6 {[%clk 0:00:05]}  Qxg6+ {[%clk 0:00:05]} 60. Kh2 {[%clk 0:00:04]}  b4 {[%clk 0:00:05]} 61. Qc7 {[%clk 0:00:03]}  b3 {[%clk 0:00:06]} 62. Qb6 {[%clk 0:00:04]}  Qc2 {[%clk 0:00:06]} 63. Bg2 {[%clk 0:00:03]}  b2 {[%clk 0:00:06]} 64. Qxc6 {[%clk 0:00:03]}  b1=Q {[%clk 0:00:06]} 65. Qd6 {[%clk 0:00:03]}  Qxf2 {[%clk 0:00:06]} 66. Qe5 {[%clk 0:00:03]}  Qbg1+ {[%clk 0:00:05]} 67. Kh3 {[%clk 0:00:03]}  Qgxg2# {[%clk 0:00:05]} 0-1


[Site "https://www.chess.com"]